fUSD/lending_fUSD_20251221
["ID","MTS","AMOUNT","RATE_DAILY","PERIOD"]
[399325629,1766304638529,-500.0,0.00013699,2]
[399325630,1766304638539,-250.15138245,0.00013699,2]
[399325631,1766304638548,-500.0,0.00013699,2]
[399325632,1766304638557,-500.0,0.00013699,2]
[399325633,1766304638566,-500.0,0.00013699,2]
[399325634,1766304638575,-500.0,0.00013699,2]
[399325635,1766304638584,-500.0,0.00013699,2]
[399325636,1766304638594,-500.0,0.00013699,2]
[399325637,1766304638603,-500.0,0.00013699,2]
[399325638,1766304638612,-500.0,0.00013699,2]
[399325639,1766304638621,-500.0,0.00013699,2]
[399325640,1766304638630,-500.0,0.00013699,2]
[399325641,1766304638639,-500.0,0.00013699,2]
[399325642,1766304638649,-622.13670995,0.00013699,2]
[399325643,1766304638661,-500.0,0.00013699,2]
[399325644,1766304638670,-500.0,0.00013699,2]
[399325645,1766304638679,-500.0,0.00013699,2]
[399325646,1766304638688,-500.0,0.00013699,2]
[399325647,1766304638698,-500.0,0.00013699,2]
[399325648,1766304638707,-500.0,0.00013699,2]
[399325649,1766304638716,-500.0,0.00013699,2]
[399325650,1766304638725,-500.0,0.00013699,2]
[399325651,1766304638734,-630.49739482,0.00013705,2]
[399325652,1766304638743,-200.0,0.00013713,2]
[399325653,1766304638755,-500.0,0.00013713,2]
[399325654,1766304638764,-200.0,0.00013713,2]
[399325655,1766304638774,-1000.0,0.00013717,2]
[399325656,1766304638783,-5329.01,0.00013754,2]
[399325657,1766304638792,-1289.1143188,0.00013793,2]
[399325658,1766304638802,-500.0,0.00013816,2]
[399325659,1766304638811,-500.0,0.00013816,2]
[399325660,1766304638821,-542.9137325,0.00013816,2]
[399325661,1766304638830,-500.0,0.00013816,2]
[399325662,1766304638839,-500.0,0.00013816,2]
[399325663,1766304638850,-500.0,0.00013816,2]
[399325664,1766304638859,-500.0,0.00013816,2]
[399325665,1766304638868,-500.0,0.00013816,2]
[399325666,1766304638878,-500.0,0.00013816,2]
[399325667,1766304638887,-500.0,0.00013816,2]
[399325668,1766304638897,-500.0,0.00013816,2]
[399325669,1766304638906,-500.0,0.00013816,2]
[399325670,1766304638916,-500.0,0.00013816,2]
[399325671,1766304638926,-501.00325997,0.00013816,2]
[399325672,1766304638935,-500.0,0.00013816,2]
[399325673,1766304638944,-500.0,0.00013816,2]
[399325674,1766304638954,-500.0,0.00013816,2]
[399325675,1766304638963,-500.0,0.00013816,2]
[399325676,1766304638973,-500.0,0.00013816,2]
[399325677,1766304638983,-500.0,0.00013816,2]
[399325678,1766304638992,-500.0,0.00013816,2]
[399325679,1766304639002,-500.0,0.00013816,2]
[399325680,1766304639011,-500.0,0.00013816,2]
[399325681,1766304639020,-500.0,0.00013816,2]
[399325682,1766304639030,-510.69307451,0.00013816,2]
[399325683,1766304639044,-500.0,0.00013816,2]
[399325684,1766304639053,-500.0,0.00013816,2]
[399325685,1766304639063,-1000.0,0.00013821,2]
[399325686,1766304639072,-1000.0,0.00013821,2]
[399325687,1766304639081,-1000.0,0.00013821,2]
[399325688,1766304639091,-1000.0,0.00013821,2]
[399325689,1766304639100,-501.58945381,0.00013821,2]
[399325690,1766304639110,-1000.0,0.00013821,2]
[399325691,1766304639120,-1003.97714891,0.00013821,2]
[399325692,1766304639130,-1002.34827947,0.00013821,2]
[399325693,1766304639140,-1000.0,0.00013821,2]
[399325694,1766304639149,-1001.65872389,0.00013821,2]
[399325695,1766304639159,-711.67995912,0.00013821,2]
[399325696,1766304639168,-1000.0,0.00013821,2]
[399325697,1766304639178,-166.66,0.00013836,2]
[399325698,1766304639187,-1176.54,0.00013972,2]
[399325699,1766304639196,-166.66,0.00013973,2]
[399325700,1766304639205,-9405.48565306,0.00014,2]
[399325701,1766304639215,-21061.21338741,0.00014,2]
[399325702,1766304639224,-200.0,0.00014071,2]
[399325703,1766304639234,-166.66,0.0001411,2]
[399325704,1766304639243,-383.31213794,0.0001417,2]
[399325705,1766304639252,-2500.0,0.00014171,2]
[399325706,1766304639261,-2500.0,0.00014171,2]
[399325707,1766304639272,-300.0,0.00014171,2]
[399325708,1766304639282,-300.0,0.00014171,2]
[399325709,1766304639292,-300.0,0.00014171,2]
[399325710,1766304639302,-300.0,0.00014171,2]
[399325711,1766304639312,-2500.0,0.00014171,2]
[399325712,1766304639321,-2500.0,0.00014171,2]
[399325713,1766304639332,-300.0,0.00014171,2]
[399325714,1766304639342,-2429.0,0.00014174,2]
[399325715,1766304639351,-581.965,0.00014174,2]
[399325716,1766304639361,-4803.0,0.00014174,2]
[399325717,1766304639371,-6399.0,0.00014175,2]
[399325718,1766304639381,-553.64373807,0.0001418,2]
[399325719,1766304639390,-201.93286099,0.0001418,2]
[399325720,1766304639399,-500.0,0.0001418,2]
[399325721,1766304639408,-500.0,0.0001418,2]
[399325722,1766304639418,-202.6395923,0.0001418,2]
[399325723,1766304639427,-500.0,0.0001418,2]
[399325724,1766304639436,-500.0,0.0001418,2]
[399325725,1766304639445,-500.0,0.0001418,2]
[399325726,1766304639455,-500.0,0.0001418,2]
[399325727,1766304639464,-500.0,0.0001418,2]
[399325728,1766304639474,-500.0,0.0001418,2]
[399325729,1766304639483,-500.0,0.0001418,2]
[399325730,1766304639492,-500.0,0.0001418,2]
[399325731,1766304639501,-500.0,0.0001418,2]
[399325732,1766304639510,-500.0,0.0001418,2]
[399325733,1766304639519,-500.0,0.0001418,2]
[399325734,1766304639528,-500.0,0.0001418,2]
[399325735,1766304639538,-500.0,0.0001418,2]
[399325736,1766304639547,-500.0,0.0001418,2]
[399325737,1766304639556,-1000.0,0.0001418,2]
[399325738,1766304639565,-500.0,0.0001418,2]
[399325739,1766304639574,-500.0,0.0001418,2]
[399325740,1766304639583,-2662.05254697,0.0001418,2]
[399325741,1766304639592,-1000.0,0.0001418,2]
[399325742,1766304639602,-500.0,0.0001418,2]
[399325743,1766304639611,-510.99352058,0.0001418,2]
[399325744,1766304639620,-1000.0,0.0001418,2]
[399325745,1766304639629,-500.0,0.0001418,2]
[399325746,1766304639639,-1000.0,0.0001418,2]
[399325747,1766304639648,-5450.0,0.0001418,2]
[399325748,1766304639660,-500.0,0.0001418,2]
[399325749,1766304639669,-1000.0,0.0001418,2]
[399325750,1766304639678,-500.0,0.0001418,2]
[399325751,1766304639687,-1000.0,0.0001418,2]
[399325752,1766304639698,-500.0,0.0001418,2]
[399325754,1766304639707,-1000.0,0.0001418,2]
[399325756,1766304639716,-500.0,0.0001418,2]
[399325758,1766304639725,-1000.0,0.0001418,2]
[399325760,1766304639736,-5000.0,0.0001418,2]
[399325762,1766304639745,-1000.0,0.0001418,2]
[399325763,1766304639754,-5000.0,0.0001418,2]
[399325766,1766304639764,-3904.265724,0.0001418,2]
[399325767,1766304639773,-250.0,0.0001418,2]
[399325769,1766304639783,-250.0,0.0001418,2]
[399325771,1766304639792,-4575.8993905,0.0001418,2]
[399325772,1766304639801,-250.0,0.0001418,2]
[399325773,1766304639811,-264.16834581,0.0001418,2]
[399325774,1766304639820,-151.0,0.0001418,2]
[399325776,1766304639829,-151.0,0.0001418,2]
[399325778,1766304639839,-500.0,0.0001418,2]
[399325780,1766304639848,-542.92428573,0.0001418,2]
[399325782,1766304639857,-1000.0,0.0001418,2]
[399325784,1766304639866,-620.0,0.0001418,2]
[399325786,1766304639876,-578.20924308,0.0001418,2]
[399325788,1766304639885,-200.0,0.0001418,2]
[399325790,1766304639894,-207.4,0.0001418,2]
[399325807,1766304640331,-215.0738,0.0001418,2]
[399325808,1766304640349,-223.0315306,0.0001418,2]
[399325809,1766304640358,-231.28369723,0.0001418,2]
[399325810,1766304640366,-239.84119403,0.0001418,2]
[399325811,1766304640375,-248.71531821,0.0001418,2]
[399325812,1766304640384,-257.91778498,0.0001418,2]
[399325813,1766304640392,-267.46074303,0.0001418,2]
[399325814,1766304640401,-300.0,0.0001418,2]
[399325815,1766304640410,-2500.0,0.000142,2]
[399325816,1766304640419,-630.49739482,0.00014237,2]
[399325817,1766304640428,-1176.54,0.00014246,2]
[399325818,1766304640436,-166.66,0.00014247,2]
[399325819,1766304640445,-200.0,0.00014261,2]
[399325820,1766304640454,-500.0,0.00014261,2]
[399325821,1766304640463,-200.0,0.00014261,2]
[399325822,1766304640472,-255.0,0.00014277,2]
[399325823,1766304640481,-162.08,0.00014298,2]
[399325825,1766304640490,-420.0,0.00014334,2]
[399325826,1766304640499,-420.0,0.00014334,2]
[399325827,1766304640508,-1500.0,0.00014368,2]
[399325829,1766304640517,-1500.0,0.00014368,2]
[399325830,1766304640526,-1500.0,0.00014368,2]
[399325832,1766304640535,-1500.0,0.00014368,2]
[399325834,1766304640545,-1508.91462185,0.00014368,2]
[399325835,1766304640554,-1500.0,0.00014368,2]
[399325836,1766304640563,-1500.0,0.00014368,2]
[399325837,1766304640572,-1680.0,0.00014378,2]
[399325838,1766304640581,-166.66,0.00014384,2]
[399325839,1766304640594,-1289.1143188,0.00014415,2]
[399325840,1766304640604,-9405.48565306,0.00014415,2]
[399325841,1766304640615,-21061.21338741,0.00014415,2]
[399325842,1766304640624,-500.0,0.00014427,2]
[399325843,1766304640634,-1176.54,0.0001452,2]
[399325844,1766304640643,-574.12855637,0.00014728,2]
[399325845,1766304640653,-247.87796896,0.00014728,2]
[399325846,1766304640664,-630.49739482,0.0001477,2]
[399325847,1766304640673,-1176.54,0.00014794,2]
[399325848,1766304640682,-200.0,0.00014809,2]
[399325849,1766304640691,-500.0,0.00014828,2]
[399325850,1766304640701,-500.0,0.00014828,2]
[399325851,1766304640710,-9405.48565306,0.00014829,2]
[399325852,1766304640719,-21061.21338741,0.00014829,2]
[399325853,1766304640728,-200.0,0.00014856,2]
[399325854,1766304640737,-151.0,0.00014868,2]
[399325855,1766304640747,-151.0,0.00014888,2]
[399325856,1766304640756,-2000.0,0.00014916,2]
[399325857,1766304640765,-696.22588074,0.00014916,2]
[399325858,1766304640775,-2000.0,0.00014916,2]
[399325859,1766304640784,-2000.0,0.00014916,2]
[399325860,1766304640793,-2000.0,0.00014916,2]
[399325861,1766304640810,-2000.0,0.00014916,2]
[399325862,1766304640819,-1289.1143188,0.00015036,2]
[399325863,1766304640829,-1176.54,0.00015068,2]
[399325864,1766304640838,-450.0,0.00015068,2]
[399325865,1766304640847,-9405.48565306,0.00015243,2]
[399325866,1766304640857,-21061.21338741,0.00015243,2]
[399325867,1766304640867,-595.37131296,0.00015276,2]
[399325868,1766304640876,-150.0,0.00015288,2]
[399325869,1766304640886,-150.0,0.00015288,2]
[399325870,1766304640895,-151.28381653,0.00015288,2]
[399325871,1766304640905,-150.0,0.00015288,2]
[399325872,1766304640914,-150.0,0.00015288,2]
[399325873,1766304640923,-150.0,0.00015288,2]
[399325875,1766304640932,-150.0,0.00015288,2]
[399325876,1766304640941,-150.0,0.00015288,2]
[399325877,1766304640951,-150.0,0.00015288,2]
[399325878,1766304640960,-150.0,0.00015288,2]
[399325879,1766304640969,-150.0,0.00015288,2]
[399325880,1766304640978,-150.0,0.00015288,2]
[399325881,1766304640987,-150.0,0.00015288,2]
[399325882,1766304640996,-150.89972091,0.00015288,2]
[399325883,1766304641006,-150.0,0.00015288,2]
[399325884,1766304641015,-630.49739482,0.00015302,2]
[399325885,1766304641024,-150.0,0.00015324,2]
[399325886,1766304641033,-150.0,0.00015328,2]
[399325887,1766304641043,-1176.54,0.00015342,2]
[399325888,1766304641051,-150.0,0.00015348,2]
[399325889,1766304641060,-150.0,0.00015358,2]
[399325890,1766304641070,-150.0,0.0001536,2]
[399325891,1766304641079,-150.0,0.00015369,2]
[399325892,1766304641088,-150.0,0.00015369,2]
[399325893,1766304641098,-150.0,0.00015396,2]
[399325894,1766304641107,-150.0,0.00015409,2]
[399325895,1766304641116,-150.0,0.00015409,2]
[399325896,1766304641125,-500.0,0.00015427,2]
[399325897,1766304641135,-150.0,0.00015429,2]
[399325898,1766304641144,-150.0,0.00015432,2]
[399325899,1766304641153,-150.0,0.00015449,2]
[399325900,1766304641162,-150.0,0.00015449,2]
[399325901,1766304641171,-2500.0,0.00015464,2]
[399325902,1766304641180,-401.46027499,0.00015464,2]
[399325903,1766304641190,-454.77156402,0.00015464,2]
[399325904,1766304641199,-557.65481763,0.00015464,2]
[399325905,1766304641208,-2500.0,0.00015464,2]
[399325906,1766304641217,-150.0,0.00015468,2]
[399325907,1766304641226,-150.0,0.0001547,2]
[399325908,1766304641236,-433.0,0.00015476,2]
[399325909,1766304641245,-150.0,0.0001549,2]
[399325910,1766304641255,-150.0,0.000155,2]
[399325911,1766304641264,-150.0,0.00015505,2]
[399325912,1766304641273,-150.0,0.0001553,2]
[399325913,1766304641283,-150.0,0.0001553,2]
[399325914,1766304641293,-150.0,0.0001553,2]
[399325915,1766304641302,-150.0,0.0001553,2]
[399325916,1766304641312,-150.0,0.00015541,2]
[399325917,1766304641321,-151.0,0.00015549,2]
[399325918,1766304641330,-151.0,0.00015549,2]
[399325919,1766304641339,-277.35679052,0.00015549,2]
[399325920,1766304641348,-311.1,0.00015549,2]
[399325921,1766304641357,-150.0,0.00015571,2]
[399325922,1766304641370,-150.0,0.00015571,2]
[399325923,1766304641379,-150.0,0.00015571,2]
[399325924,1766304641388,-150.0,0.00015571,2]
[399325925,1766304641397,-150.0,0.00015577,2]
[399325926,1766304641407,-150.0,0.00015591,2]
[399325927,1766304641416,-150.0,0.00015611,2]
[399325928,1766304641424,-150.0,0.00015611,2]
[399325929,1766304641434,-150.0,0.00015613,2]
[399325931,1766304641443,-1176.54,0.00015616,2]
[399325933,1766304641452,-150.0,0.00015642,2]
[399325935,1766304641461,-150.0,0.00015649,2]
[399325937,1766304641470,-150.0,0.00015652,2]
[399325938,1766304641479,-150.0,0.00015652,2]
[399325940,1766304641488,-1289.1143188,0.00015657,2]
[399325942,1766304641498,-9405.48565306,0.00015657,2]
[399325944,1766304641507,-21061.21338741,0.00015657,2]
[399325946,1766304641516,-150.0,0.00015685,2]
[399325948,1766304641525,-150.0,0.00015692,2]
[399325949,1766304641534,-150.0,0.00015692,2]
[399325950,1766304641543,-529.0,0.00015704,2]
[399325951,1766304641552,-150.0,0.00015712,2]
[399325952,1766304641562,-150.0,0.00015712,2]
[399325953,1766304641571,-150.0,0.00015712,2]
[399325954,1766304641580,-587.0,0.00015718,2]
[399325955,1766304641589,-587.0,0.00015718,2]
[399325956,1766304641598,-150.0,0.00015721,2]
[399325957,1766304641607,-150.0,0.00015733,2]
[399325958,1766304641616,-150.0,0.00015758,2]
[399325959,1766304641626,-150.0,0.00015773,2]
[399325960,1766304641635,-150.0,0.00015773,2]
[399325961,1766304641645,-150.0,0.00015773,2]
[399325962,1766304641660,-150.0,0.00015773,2]
[399325963,1766304641669,-150.0,0.00015783,2]
[399325964,1766304641679,-150.0,0.00015794,2]
[399325965,1766304641688,-150.0,0.00015813,2]
[399325966,1766304641698,-2351.0,0.00015816,2]
[399325967,1766304641708,-617.40005154,0.00015824,2]
[399325968,1766304641718,-150.0,0.0001583,2]
[399325969,1766304641727,-150.0,0.00015834,2]
[399325970,1766304641738,-630.49739482,0.00015835,2]
[399325971,1766304641747,-150.0,0.00015854,2]
[399325972,1766304641757,-150.0,0.00015854,2]
[399325973,1766304641767,-150.0,0.00015854,2]
[399325974,1766304641777,-150.0,0.00015854,2]
[399325975,1766304641787,-150.0,0.00015854,2]
[399325976,1766304641797,-150.0,0.00015866,2]
[399325977,1766304641807,-1176.54,0.0001589,2]
[399325978,1766304641816,-150.0,0.00015894,2]
[399325979,1766304641826,-150.0,0.00015894,2]
[399325980,1766304641835,-150.0,0.00015902,2]
[399325981,1766304641845,-150.0,0.00015925,2]
[399325982,1766304641855,-150.0,0.00015935,2]
[399325983,1766304641864,-150.0,0.00015935,2]
[399325984,1766304641874,-150.0,0.00015938,2]
[399325985,1766304641883,-150.0,0.00015955,2]
[399325986,1766304641893,-500.4654119,0.00015973,2]
[399325987,1766304641902,-501.15885684,0.00015973,2]
[399325988,1766304641913,-500.61743436,0.00015973,2]
[399325989,1766304641923,-500.55342912,0.00015973,2]
[399325990,1766304641933,-168.18676432,0.00015973,2]
[399325991,1766304641942,-570.29356194,0.00015973,2]
[399325992,1766304641952,-500.51801303,0.00015973,2]
[399325993,1766304641961,-500.34372301,0.00015973,2]
[399325994,1766304641971,-500.95609969,0.00015973,2]
[399325995,1766304641980,-518.86476464,0.00015973,2]
[399325996,1766304641989,-501.03374928,0.00015973,2]
[399325997,1766304641998,-500.0,0.00015973,2]
[399325998,1766304642007,-162.2682575,0.00015973,2]
[399325999,1766304642016,-500.82535785,0.00015973,2]
[399326000,1766304642026,-501.04177666,0.00015973,2]
[399326001,1766304642036,-500.88956143,0.00015973,2]
[399326002,1766304642045,-500.47443561,0.00015973,2]
[399326003,1766304642054,-503.05961393,0.00015973,2]
[399326004,1766304642063,-334.60508476,0.00015973,2]
[399326005,1766304642073,-500.94315353,0.00015973,2]
[399326006,1766304642082,-330.74959628,0.00015973,2]
[399326007,1766304642091,-162.38378184,0.00015973,2]
[399326008,1766304642100,-590.29428357,0.00015973,2]
[399326009,1766304642110,-333.50168371,0.00015973,2]
[399326010,1766304642123,-452.23233136,0.00015973,2]
[399326011,1766304642132,-500.35420058,0.00015973,2]
[399326012,1766304642142,-500.67170266,0.00015973,2]
[399326013,1766304642151,-177.38138354,0.00015973,2]
[399326014,1766304642160,-500.52093975,0.00015973,2]
[399326015,1766304642169,-160.18740865,0.00015973,2]
[399326016,1766304642178,-160.176,0.00015973,2]
[399326017,1766304642187,-160.18648371,0.00015973,2]
[399326018,1766304642197,-160.18740865,0.00015973,2]
[399326019,1766304642206,-160.18741035,0.00015973,2]
[399326020,1766304642216,-500.86854265,0.00015973,2]
[399326021,1766304642226,-500.65341776,0.00015973,2]
[399326022,1766304642235,-501.49447409,0.00015973,2]
[399326023,1766304642244,-500.90575555,0.00015973,2]
[399326024,1766304642253,-502.67024509,0.00015973,2]
[399326025,1766304642263,-501.73374202,0.00015973,2]
[399326026,1766304642272,-501.07980715,0.00015973,2]
[399326027,1766304642281,-555.97636192,0.00015973,2]
[399326028,1766304642290,-500.77244015,0.00015973,2]
[399326029,1766304642299,-500.81615011,0.00015973,2]
[399326030,1766304642308,-501.45767981,0.00015973,2]
[399326031,1766304642318,-500.8679768,0.00015973,2]
[399326032,1766304642328,-160.18740865,0.00015973,2]
[399326033,1766304642337,-160.18740865,0.00015973,2]
[399326034,1766304642346,-160.18740865,0.00015973,2]
[399326035,1766304642356,-160.18546537,0.00015973,2]
[399326036,1766304642365,-426.64941198,0.00015973,2]
[399326037,1766304642375,-160.18648397,0.00015973,2]
[399326038,1766304642385,-160.18648397,0.00015973,2]
[399326039,1766304642396,-160.18819168,0.00015973,2]
[399326040,1766304642405,-160.18740865,0.00015973,2]
[399326041,1766304642414,-505.23381975,0.00015973,2]
[399326042,1766304642423,-500.56420784,0.00015973,2]
[399326043,1766304642432,-543.24024385,0.00015973,2]
[399326044,1766304642442,-577.42409755,0.00015973,2]
[399326045,1766304642452,-370.53527967,0.00015973,2]
[399326046,1766304642461,-500.96497505,0.00015973,2]
[399326047,1766304642470,-501.02237634,0.00015973,2]
[399326048,1766304642480,-500.30670484,0.00015973,2]
[399326049,1766304642489,-160.18741035,0.00015973,2]
[399326050,1766304642498,-500.0,0.00015973,2]
[399326051,1766304642508,-160.18740865,0.00015973,2]
[399326052,1766304642517,-160.18740865,0.00015973,2]
[399326053,1766304642526,-160.18741035,0.00015973,2]
[399326054,1766304642535,-501.99692439,0.00015973,2]
[399326055,1766304642545,-500.69834491,0.00015973,2]
[399326057,1766304642554,-500.92329476,0.00015973,2]
[399326058,1766304642564,-500.0,0.00015973,2]
[399326059,1766304642573,-501.34405812,0.00015973,2]
[399326060,1766304642583,-500.61638625,0.00015973,2]
[399326062,1766304642592,-530.05316157,0.00015973,2]
[399326063,1766304642602,-168.59717172,0.00015973,2]
[399326064,1766304642611,-1613.51050253,0.00015973,2]
[399326065,1766304642620,-575.35496106,0.00015973,2]
[399326066,1766304642629,-150.0,0.00015974,2]
[399326067,1766304642639,-150.0,0.00015975,2]
[399326068,1766304642648,-150.0,0.00015995,2]
[399326069,1766304642663,-4000.0,0.00016,2]
[399326070,1766304642672,-150.0,0.0001601,2]
[399326071,1766304642681,-3000.0,0.00016012,2]
[399326072,1766304642690,-3000.0,0.00016012,2]
[399326073,1766304642699,-150.0,0.00016016,2]
[399326074,1766304642709,-150.0,0.00016016,2]
[399326075,1766304642719,-150.0,0.00016016,2]
[399326076,1766304642728,-150.0,0.00016016,2]
[399326077,1766304642737,-150.0,0.00016047,2]
[399326078,1766304642746,-150.0,0.00016056,2]
[399326079,1766304642756,-150.0,0.00016066,2]
[399326080,1766304642766,-9405.48565306,0.00016072,2]
[399326081,1766304642776,-21061.21338741,0.00016072,2]
[399326082,1766304642785,-150.0,0.00016076,2]
[399326083,1766304642795,-150.0,0.00016083,2]
[399326084,1766304642813,-150.0,0.00016097,2]
[399326085,1766304642823,-150.0,0.00016097,2]
[399326086,1766304642833,-150.0,0.00016119,2]
[399326087,1766304642843,-150.0,0.00016137,2]
[399326088,1766304642853,-150.0,0.00016137,2]
[399326089,1766304642862,-150.0,0.00016137,2]
[399326090,1766304642872,-150.0,0.00016137,2]
[399326091,1766304642882,-150.0,0.00016137,2]
[399326092,1766304642894,-150.0,0.00016137,2]
[399326093,1766304642903,-150.0,0.00016137,2]
[399326094,1766304642913,-150.0,0.00016155,2]
[399326095,1766304642927,-1176.54,0.00016164,2]
[399326096,1766304642937,-150.0,0.00016177,2]
[399326097,1766304642947,-150.0,0.00016177,2]
[399326098,1766304642956,-150.0,0.00016191,2]
[399326099,1766304642967,-150.0,0.00016198,2]
[399326100,1766304642977,-150.0,0.00016208,2]
[399326101,1766304642987,-150.0,0.00016218,2]
[399326102,1766304642997,-150.0,0.00016227,2]
[399326103,1766304643007,-150.0,0.00016258,2]
[399326104,1766304643017,-150.0,0.00016258,2]
[399326105,1766304643027,-150.0,0.00016258,2]
[399326106,1766304643037,-150.0,0.00016258,2]
[399326107,1766304643047,-150.0,0.00016263,2]
[399326108,1766304643056,-150.0,0.00016279,2]
[399326109,1766304643066,-1289.1143188,0.00016279,2]
[399326110,1766304643076,-15203.71582164,0.00016297,2]
[399326111,1766304643086,-150.0,0.00016299,2]
[399326112,1766304643097,-150.0,0.000163,2]
[399326113,1766304643106,-150.0,0.00016319,2]
[399326114,1766304643116,-150.0,0.00016336,2]
[399326115,1766304643126,-150.0,0.00016339,2]
[399326116,1766304643136,-150.0,0.00016339,2]
[399326117,1766304643145,-150.0,0.00016349,2]
[399326118,1766304643155,-174.04,0.00016354,2]
[399326119,1766304643165,-630.49739482,0.00016367,2]
[399326120,1766304643175,-150.0,0.00016372,2]
[399326121,1766304643184,-640.24385345,0.00016372,2]
[399326122,1766304643194,-150.0,0.0001638,2]
[399326123,1766304643204,-150.0,0.0001638,2]
[399326124,1766304643214,-150.0,0.00016408,2]
[399326125,1766304643224,-150.0,0.0001642,2]
[399326126,1766304643233,-150.0,0.0001642,2]
[399326127,1766304643243,-150.0,0.0001642,2]
[399326128,1766304643252,-150.0,0.0001642,2]
[399326129,1766304643261,-150.0,0.0001642,2]
[399326130,1766304643271,-176.7,0.00016436,2]
[399326131,1766304643280,-500.0,0.00016437,2]
[399326132,1766304643289,-500.0,0.00016437,2]
[399326133,1766304643298,-1176.54,0.00016438,2]
[399326134,1766304643308,-1785.94576403,0.00016438,2]
[399326135,1766304643317,-1785.94576403,0.00016438,2]
[399326136,1766304643326,-1785.94576403,0.00016438,2]
[399326137,1766304643335,-1785.94576403,0.00016438,2]
[399326138,1766304643345,-1785.94576403,0.00016438,2]
[399326139,1766304643355,-1785.94576403,0.00016438,2]
[399326140,1766304643364,-1785.94576403,0.00016438,2]
[399326141,1766304643374,-1785.94576403,0.00016438,2]
[399326142,1766304643383,-1785.94576403,0.00016438,2]
[399326143,1766304643392,-1785.94576403,0.00016438,2]
[399326144,1766304643401,-1785.94576403,0.00016438,2]
[399326145,1766304643410,-1785.94576403,0.00016438,2]
[399326146,1766304643420,-1785.94576403,0.00016438,2]
[399326147,1766304643430,-1785.94576403,0.00016438,2]
[399326148,1766304643440,-1785.94576403,0.00016438,2]
[399326149,1766304643448,-1785.94576403,0.00016438,2]
[399326150,1766304643457,-1785.94576403,0.00016438,2]
[399326151,1766304643466,-1785.94576403,0.00016438,2]
[399326152,1766304643476,-1785.94576403,0.00016438,2]
[399326153,1766304643486,-1785.94576403,0.00016438,2]
[399326154,1766304643497,-1785.94576403,0.00016438,2]
[399326155,1766304643508,-1785.94576403,0.00016438,2]
[399326156,1766304643519,-1785.94576403,0.00016438,2]
[399326157,1766304643528,-1785.94576403,0.00016438,2]
[399326158,1766304643537,-1785.94576403,0.00016438,2]
[399326159,1766304643547,-1785.94576403,0.00016438,2]
[399326160,1766304643559,-1785.94576403,0.00016438,2]
[399326161,1766304643569,-1785.94576403,0.00016438,2]
[399326162,1766304643581,-1785.94576403,0.00016438,2]
[399326163,1766304643591,-1785.94576403,0.00016438,2]
[399326164,1766304643600,-1785.94576403,0.00016438,2]
[399326165,1766304643609,-1785.94576403,0.00016438,2]
[399326166,1766304643618,-1785.94576403,0.00016438,2]
[399326167,1766304643628,-1785.94576403,0.00016438,2]
[399326168,1766304643639,-1785.94576403,0.00016438,2]
[399326169,1766304643650,-1785.94576403,0.00016438,2]
[399326170,1766304643664,-1758.98809212,0.00016438,2]
[399326171,1766304643674,-1758.98809212,0.00016438,2]
[399326172,1766304643684,-1758.98809212,0.00016438,2]
[399326173,1766304643695,-1758.98809212,0.00016438,2]
[399326174,1766304643709,-1758.98809212,0.00016438,2]
[399326175,1766304643721,-1758.98809212,0.00016438,2]
[399326176,1766304643730,-1758.98809212,0.00016438,2]
[399326177,1766304643740,-1758.98809212,0.00016438,2]